Cogmind - Beta 17 @@@ ROGUE MODE // 2026.06.26 @ 15:23:31 Player: Nalesnig Result: Escaped! Performance ------------- Evolutions (9) 4500 Regions Visited (22) 4400 Robots Destroyed (304) 1520 Value Destroyed (13766) 13766 Prototype IDs (58) 1160 Alien Tech Used (1) 200 Bonus (29661) 29661 TOTAL SCORE: 55207 Bonus ------- High Alert Combat Kills 2526 Follower Combat Kills 2571 Prayed to X0-1V1 5000 Major X0-1V1 Interference 12700 Network Hubs Disabled 200 Met Zhirov 300 Met Warlord at Base 500 MAIN.C Attacked Warlord 500 Warlord Defense Kills 354 A7 Reached Mainframe 300 Met Warlord at Research 2000 Win 3000 Friendly Fire -290 Cogmind --------- Core Integrity 1159/1250 Matter 337/500 Energy 934/940 System Corruption 0% Temperature Cool (15) Movement Flying (24) Location To Epsilon Eridani Parts ------- > --- POWER (2) -------- Graviton Reactor > --- PROPULSION (7) --- Electron Diverter Electron Diverter Impulse Thruster Array Impulse Thruster Array Experimental Q-thruster (fused) > --- UTILITY (11) ----- Medium Storage Unit Experimental Energy Well Enhanced Optical Array 0b10 Decoder Chip [Generic] Advanced Targeting Computer Advanced Target Analyzer Advanced Transmission Jammer Advanced Cloaking Device Force Field Improved Hacking Suite X0-1V1's Piety Tracker > --- WEAPON (5) ------- Hardcell Cannon Compact Linear Accelerator Heavy Scimitar of Distortion > --- INVENTORY (10) --- Micro Antimatter Reactor Micro Antimatter Reactor Light Quantum Reactor Impulse Thruster Array Enhanced Nova Cannon YOLO Cannon Gamma Bomb Array Enhanced Force Lance Peak State ------------ > --- POWER ------------ Graviton Reactor > --- PROPULSION ------- Electron Diverter Electron Diverter Impulse Thruster Array Impulse Thruster Array Experimental Q-thruster > --- UTILITY ---------- Medium Storage Unit Experimental Energy Well Enhanced Optical Array 0b10 Decoder Chip [Generic] Advanced Targeting Computer Advanced Target Analyzer Advanced Transmission Jammer Advanced Cloaking Device Force Field Improved Hacking Suite X0-1V1's Piety Tracker > --- WEAPON ----------- Tesla Rifle Hardcell Cannon Compact Linear Accelerator Heavy Scimitar of Distortion > --- INVENTORY -------- Micro Antimatter Reactor Micro Antimatter Reactor Light Quantum Reactor Impulse Thruster Array Enhanced Nova Cannon YOLO Cannon Gamma Bomb Array Enhanced Force Lance [Rating: 178] Favorites ----------- Power Reinforced Fission Core Engine Angular Momentum Engine Power Core Reinforced Fission Core Reactor Fusion Reactor Propulsion Armored Treads Treads Armored Treads Leg Flexi-carbon Leg Wheel Wheel Hover Unit Combat Antigrav System Flight Unit Electron Diverter Utility X0-1V1's Piety Tracker Device X0-1V1's Piety Tracker Storage Large Storage Unit Processor 0b10 Decoder Chip [Generic] Hackware Improved Hacking Suite Protection Centrium Medium Armor Plating Weapon Heavy Plasma Cannon Energy Gun Gamma Rifle Energy Cannon Heavy Plasma Cannon Ballistic Gun Gauss Rifle Ballistic Cannon Advanced Assault Cannon Launcher Gamma Bomb Array Special Weapon Experimental Remote Datajack Impact Weapon Thunder Hammer Slashing Weapon Heavy Scimitar of Distortion Piercing Weapon Spear Special Melee Weapon Dirty Datajack Build | -11 -10 -9 -8 -7 -6 -6 -6 -6 -6 -5 -5 -5 -5 -4 -4 -4 -4 -4 -3 -3 -2 -1 ------- Run | Yrd Mat Mat Mat Fac Fac Ext Cet Arc Hub Fac Upp Upp Zhi Pro Fac Upp Upp War Pro Res Res Acc Slots Evolved 18 | . . 2 2 2 2 . . . . 2 . . . . 2 . . . . 2 2 2 Power . | . . . . . . . . . . . . . . . . . . . . . . . Propulsion 6 | . . . . 1 . . . . . 2 . . . . . . . . . 1 1 1 Utility 9 | . . 1 1 1 2 . . . . . . . . . 1 . . . . 1 1 1 Weapon 3 | . . 1 1 . . . . . . . . . . . 1 . . . . . . . Parts Attached 225 | 7 5 5 10 28 22 10 3 1 7 17 2 8 4 . 8 . 2 6 2 60 13 5 Power 22 | 1 . 1 1 3 3 . 1 1 . 1 1 1 1 . . . . . . 4 3 . Engine 6 | 1 . 1 1 1 1 . . . . . . 1 . . . . . . . . . . Core 7 | . . . . 2 2 . 1 1 . 1 . . . . . . . . . . . . Reactor 9 | . . . . . . . . . . . 1 . 1 . . . . . . 4 3 . Propulsion 47 | 2 2 1 3 6 3 2 . . 1 1 1 3 . . 2 . . . . 17 2 1 Treads 30 | 2 1 1 3 6 3 2 . . 1 1 1 2 . . 1 . . . . 6 . . Leg 4 | . . . . . . . . . . . . 1 . . 1 . . . . 2 . . Wheel 1 | . 1 . . . . . . . . . . . . . . . . . . . . . Hover 4 | . . . . . . . . . . . . . . . . . . . . 4 . . Flight 8 | . . . . . . . . . . . . . . . . . . . . 5 2 1 Utility 77 | 2 1 1 2 6 5 4 1 . 3 10 . 2 3 . 4 . 1 3 . 22 4 3 Device 39 | 1 . 1 . 3 3 2 1 . . 6 . 2 1 . 3 . . 3 . 7 3 3 Storage 9 | 1 1 . . 1 . . . . . 1 . . 1 . . . . . . 4 . . Processor 14 | . . . 1 . 1 . . . 1 2 . . . . . . . . . 8 1 . Hackware 1 | . . . . . . . . . . . . . . . . . . . . 1 . . Protection 14 | . . . 1 2 1 2 . . 2 1 . . 1 . 1 . 1 . . 2 . . Artifact . | . . . . . . . . . . . . . . . . . . . . . . . Weapon 79 | 2 2 2 4 13 11 4 1 . 3 5 . 2 . . 2 . 1 3 2 17 4 1 Energy Gun 18 | . . . 1 2 . . . . . 2 . . . . 1 . 1 . 2 8 . 1 Energy Cannon 12 | . . . . . 2 1 1 . 1 . . 1 . . . . . 3 . 2 1 . Ballistic Gun 25 | 2 2 2 2 7 3 2 . . 1 1 . 1 . . 1 . . . . 1 . . Ballistic Cannon 11 | . . . . 2 2 1 . . . 1 . . . . . . . . . 3 2 . Launcher 4 | . . . . 1 . . . . 1 . . . . . . . . . . 2 . . Special Weapon 1 | . . . . . . . . . . . . . . . . . . . . 1 . . Impact Weapon 2 | . . . 1 . 1 . . . . . . . . . . . . . . . . . Slashing Weapon 3 | . . . . . 2 . . . . 1 . . . . . . . . . . . . Piercing Weapon 1 | . . . . 1 . . . . . . . . . . . . . . . . . . Special Melee Weapon 2 | . . . . . 1 . . . . . . . . . . . . . . . 1 . Unidentified Prototypes 40 | . . 1 . 3 5 1 . . 1 9 1 . 4 . 1 . . 1 1 6 6 . Corrupted Parts 2 | . . . . 1 . 1 . . . . . . . . . . . . . . . . System Corruption 5 | . . . . 4 . 1 . . . . . . . . . . . . . . . . Parts Lost 86 | . 1 . 2 10 6 7 . . 7 1 1 5 . . . 1 4 . 2 36 2 1 Power 8 | . . . . 1 . . . . 1 . . . . . . . . . 1 5 . . Propulsion 22 | . 1 . . 3 1 3 . . 1 . 1 2 . . . . . . . 10 . . Utility 23 | . . . 1 1 1 2 . . 2 1 . 2 . . . 1 1 . . 8 2 1 Weapon 33 | . . . 1 5 4 2 . . 3 . . 1 . . . . 3 . 1 13 . . Highest Loss Streak 21 | . 1 . 1 3 1 5 . . 5 1 1 3 . . . 1 2 . 1 21 1 1 To Critical Strikes 1 | . . . . . 1 . . . . . . . . . . . . . . . . . Average Backups 10 | 2 11 14 14 14 13 12 12 13 12 13 13 8 5 5 4 5 4 4 4 6 7 7 Power 1 | . 1 1 . . . 1 1 1 1 1 1 1 1 1 1 2 2 2 2 2 2 2 Propulsion 2 | 1 2 5 6 4 2 1 2 3 3 1 2 . . . . 1 1 1 . 1 1 1 Utility 2 | . 3 4 4 4 3 4 4 4 2 3 4 2 1 1 . . . . 1 . 1 . Weapon 4 | . 4 4 3 5 6 4 5 5 4 5 6 4 3 3 2 2 1 1 1 2 2 3 Tool/Special . | . . . . . . . . . . . . . . . . . . . . . . . Unused Backups 43 | . 5 2 5 3 6 4 1 1 1 5 . . . . . . . 1 . 2 2 5 Power 4 | . . . 1 . . . . . . 1 . . . . . . . . . . . 2 Propulsion 8 | . . . 1 1 . 2 . . 1 . . . . . . . . 1 . . 1 1 Utility 15 | . 3 1 . 2 1 2 1 1 . 2 . . . . . . . . . 1 1 . Weapon 16 | . 2 1 3 . 5 . . . . 2 . . . . . . . . . 1 . 2 Tool/Special . | . . . . . . . . . . . . . . . . . . . . . . . Average Slot Usage (%) 90 | . 99 99 98 99 99 91 86 85 85 92 94 91 76 94 85 80 78 79 82 73 81 79 Engine 2 | . 14 11 9 1 4 . . . . . . 2 3 . . . . . . . . . Core 4 | . . . . 5 1 6 6 9 12 10 11 7 5 5 5 5 4 4 5 2 . . Reactor 1 | . . . . . . . . . . . . . 1 5 5 5 4 4 4 3 4 4 Treads 15 | . 22 11 9 22 20 15 12 13 6 16 17 18 17 17 14 15 14 14 15 11 . . Flight 1 | . . . . . . . . . . . . . . . . . . . . 3 19 20 Device 16 | . 14 21 15 10 19 15 17 20 20 17 17 19 22 23 22 17 14 18 21 12 7 12 Storage 5 | . 14 11 9 7 6 6 6 6 6 5 5 2 . . . . . . . 3 8 8 Processor 8 | . . . 1 7 7 6 2 . 5 9 11 11 11 11 10 10 9 9 10 12 21 18 Protection 4 | . . . 8 4 4 6 6 6 6 4 5 5 5 5 5 5 6 4 5 1 . . Energy Gun 2 | . . . 6 4 . . . . . 4 5 . . . 2 5 6 9 9 4 2 . Energy Cannon 4 | . . . . . 4 9 12 13 18 4 5 5 . 5 5 5 2 6 5 3 . . Ballistic Gun 9 | . 28 33 26 20 11 8 6 2 . 5 5 5 . 5 5 5 4 . . . . . Ballistic Cannon 4 | . . . . 5 9 8 7 6 3 . . 4 . 4 5 5 2 . . 3 6 8 Slashing Weapon 2 | . . . . 4 5 6 3 . . . . . . . . . 2 4 5 3 4 4 Peak Build Rating 178 | 7 10 25 37 57 73 94 95 94 94 125 126 124 115 115 143 137 142 155 150 168 171 178 Average Rating 92 | 5 7 24 31 52 65 81 92 93 89 119 123 116 96 115 128 136 137 146 142 132 152 169 On Entrance 91 | . 7 10 25 36 54 70 94 93 94 75 124 123 112 115 115 137 136 133 144 142 123 150 Avg Prop Armor Cover (%) 7 | . 11 6 6 8 . . . . . . . 2 3 2 2 . . . . 16 . . Naked Turns . | . . . . . . . . . . . . . . . . . . . . . . . Heaviest Build 117 | 13 30 36 46 55 73 98 109 109 111 102 100 100 67 67 89 88 87 117 97 117 51 59 Greatest Support 216 | 40 40 20 46 75 68 106 106 106 106 144 144 191 138 138 188 188 188 188 188 216 51 60 Greatest Overweight (x) 4 | 2 2 3 4 1 1 2 1 1 1 . . . . . . . . . . 2 1 . Average Overweight (x) . | . 1 1 3 . . . . . . . . . . . . . . . . . . . Largest Inventory Capacity 20 | 8 15 15 15 20 15 15 15 15 15 15 15 15 5 5 5 5 5 5 5 10 10 10 Average Capacity 11 | 7 13 15 15 15 15 15 15 15 15 15 15 9 5 5 5 5 5 5 5 8 10 10 Most Carried 15 | 4 15 15 15 15 15 15 15 15 15 15 15 15 5 5 5 5 5 5 5 10 10 10 Average Carried 11 | 2 11 14 14 14 14 14 14 14 14 14 14 9 5 5 4 5 4 4 4 6 9 9 Final Capacity 15 | 8 15 15 15 15 15 15 15 15 15 15 15 5 5 5 5 5 5 5 5 10 10 10 Final Carried 15 | 4 15 15 15 15 15 15 15 15 10 15 14 5 5 5 5 5 5 5 5 10 10 10 Class Distribution -------------------- 28% | Tank 22% | Gunner 20% | Scavenger-Tank 12% | Mutant 5% | Sprinter 4% | Executioner Dominant Class ---------------- Mutant | -10/Materials Scavenger-Gunner | -9/Materials Scavenger-Tank | -8/Materials Gunner | -7/Factory Gunner | -6/Factory Executioner | -6/Extension Tank | -6/Cetus Scavenger-Tank | -6/Archives Scavenger-Tank | -6/Hub_04(d) Scavenger-Tank | -5/Factory Scavenger-Tank | -5/Upper Caves Scavenger-Tank | -5/Upper Caves Mutant | -5/Zhirov Tank | -4/Proximity Caves Tank | -4/Factory Tank | -4/Upper Caves Tank | -4/Upper Caves Tank | -4/Warlord Tank | -3/Proximity Caves Tank | -3/Research Sprinter | -2/Research Sprinter | -1/Access Resources | -11 -10 -9 -8 -7 -6 -6 -6 -6 -6 -5 -5 -5 -5 -4 -4 -4 -4 -4 -3 -3 -2 -1 ----------- Run | Yrd Mat Mat Mat Fac Fac Ext Cet Arc Hub Fac Upp Upp Zhi Pro Fac Upp Upp War Pro Res Res Acc Matter Collected 11238 | 213 694 388 553 1673 982 1228 157 44 223 424 414 365 . 228 885 389 100 429 258 1258 280 53 Remotely . | . . . . . . . . . . . . . . . . . . . . . . . Salvage Created 14528 | 18 888 312 782 1805 1015 1297 89 . 693 468 671 678 . 212 930 380 202 209 407 3472 . . Parts 701 | 3 63 25 51 74 50 58 5 . 24 25 30 19 . 18 38 21 7 5 21 164 . . Haulers Intercepted 12 | . 2 . 2 3 . 3 . . 2 . . . . . . . . . . . . . Recyclers Shooed 7 | . . . 1 2 1 . . . . . . . . . 2 . . . . 1 . . Parts Field Recycled . | . . . . . . . . . . . . . . . . . . . . . . . Retrieved Matter . | . . . . . . . . . . . . . . . . . . . . . . . Parts Self-Destructed 108 | . . . . . . . . . . . 31 16 . 17 . 20 4 . 20 . . . Prevented 7 | . . . . . . . . . . . 1 . . . . 1 5 . . . . . Parts Restored . | . . . . . . . . . . . . . . . . . . . . . . . Kills | -11 -10 -9 -8 -7 -6 -6 -6 -6 -6 -5 -5 -5 -5 -4 -4 -4 -4 -4 -3 -3 -2 -1 ------- Run | Yrd Mat Mat Mat Fac Fac Ext Cet Arc Hub Fac Upp Upp Zhi Pro Fac Upp Upp War Pro Res Res Acc Combat Hostiles Destroyed 239 | . 22 5 19 32 18 11 1 . 7 10 12 15 . 10 10 9 3 2 6 47 . . Melee 5 | . . . . . 1 . . . . . 2 . . . . . . . . 2 . . Guns 108 | . 22 5 19 20 1 2 . . . 6 4 6 . 2 5 5 1 1 3 6 . . Cannons 87 | . . . . 9 14 7 1 . 5 3 6 4 . 5 5 4 2 . 1 21 . . AOE 23 | . . . . 2 1 . . . . . . 4 . 3 . . . . . 13 . . Classes Destroyed 21 | 1 4 3 4 4 1 . . . . . . . . 2 . . . 1 . 1 . . Worker 11 | . 1 . . 6 . . . . . . . . . . 2 . . . . 2 . . Builder 10 | . . . 1 . 2 2 . . 1 . . . . . 1 . . . . 3 . . Tunneler 4 | 1 . . 1 1 . 1 . . . . . . . . . . . . . . . . Hauler 12 | . 2 . 2 3 . 3 . . 2 . . . . . . . . . . . . . Recycler 14 | . . 1 . 5 1 2 . . . . . . . . 2 . . . . 3 . . Minesweeper 1 | . . . . . . . . . . . . . . 1 . . . . . . . . Mechanic 2 | . . . . . . . . . . . . . . . . . . . . 2 . . Operator 3 | . . 1 . 1 . . . . 1 . . . . . . . . . . . . . Drone 2 | . . . . . . . . . . . . . . 1 . . . . 1 . . . Watcher 7 | . . . 1 1 2 . 1 . 1 . . . . . . . . . . 1 . . Swarmer 42 | . 6 . 8 1 . . . . . 2 1 1 . 8 . 5 . . . 10 . . Grunt 71 | . 16 3 6 12 3 3 . . 4 . 4 9 . . . 3 2 1 . 5 . . Brawler 6 | . . . . 1 1 . . . 1 . 1 . . . . 1 1 . . . . . Duelist 5 | . . . 2 . 3 . . . . . . . . . . . . . . . . . Protector 1 | . . . . 1 . . . . . . . . . . . . . . . . . . Sentry 27 | . . 2 2 4 4 5 . . . 2 1 1 . . 2 . . . . 4 . . Specialist 8 | . . . . 3 . . . . . 2 . . . . . . . . . 3 . . Hunter 33 | . . . 1 4 2 1 . . . . 2 4 . . 4 . . . . 15 . . Programmer 37 | . . . . 6 4 . . . 1 4 3 . . 1 4 . . . 4 10 . . Behemoth 4 | . . . . . 1 2 . . . . . . . . . . . . 1 . . . Cetus Guard 1 | . . . . . . . 1 . . . . . . . . . . . . . . . Lightning 1 | . . . . . . . . . 1 . . . . . . . . . . . . . Striker 1 | . . . . . . . . . . . . . . . . . . 1 . . . . Thug 1 | . . . . . . . . . . . . . . . . . . 1 . . . . Best Kill Streak 19 | 1 4 3 9 10 5 6 2 . 2 2 3 5 . 4 3 5 2 2 2 19 . . Combat Bots Only 15 | . 4 3 8 7 4 2 1 . 1 2 3 5 . 4 2 5 2 2 2 15 . . Max Kills in Single Turn 3 | 1 2 1 2 3 2 3 1 . 2 1 1 2 . 1 2 1 1 1 1 3 . . Gunslinging 1 | . 1 . . . . . . . . . . . . . . . . . . . . . Exploded 3 | . . . . 1 1 . . . . . . 2 . 1 . . . . . 3 . . Melee 1 | . . . . . 1 . . . . . 1 . . . . . . . . 1 . . Uniques/NPCs Destroyed . | . . . . . . . . . . . . . . . . . . . . . . . Combat | -11 -10 -9 -8 -7 -6 -6 -6 -6 -6 -5 -5 -5 -5 -4 -4 -4 -4 -4 -3 -3 -2 -1 -------- Run | Yrd Mat Mat Mat Fac Fac Ext Cet Arc Hub Fac Upp Upp Zhi Pro Fac Upp Upp War Pro Res Res Acc Hostile Shots Fired 2302 | . 86 15 65 315 192 121 11 6 122 63 71 93 . 28 54 19 84 68 109 671 30 79 Missed 655 | . 22 5 20 99 57 38 . 2 28 24 19 13 . 8 17 6 18 18 36 168 18 39 Hits 1647 | . 64 10 45 216 135 83 11 4 94 39 52 80 . 20 37 13 66 50 73 503 12 40 Melee 27 | . . . . 2 16 . . . . . 1 . . . . . 6 2 . . . . Projectile 1620 | . 64 10 45 214 119 83 11 4 94 39 51 80 . 20 37 13 60 48 73 503 12 40 AOE 2 | . . . . . . . . . . . . . . . . . . . . 1 . 1 Critical Strikes 60 | . . . 2 4 3 1 . . 8 1 2 2 . . 3 3 3 5 1 20 1 1 Part Disruptions 6 | . . . . 2 . . . . 1 2 . . . . . . . . . 1 . . Damage Taken 27433 | . 718 118 539 2802 2154 1280 161 101 2795 508 705 1095 . 309 745 263 1556 486 757 9540 232 569 Core 2431 | . 126 10 82 289 76 79 25 . 350 95 . 14 . . 24 39 64 18 20 1005 24 91 Absorbed by Shields 3697 | . . . . 384 . 14 158 . . 145 234 297 . . . . . 488 780 800 . 397 Reduced by Siege Mode 920 | . . . . . . 10 7 . 23 . 15 57 . 25 . 16 68 . 30 669 . . Ignored by Resistances 767 | . . . . . . . . . . 64 77 . . . . . . 176 72 378 . . Regen/Repaired (Parts) 255 | . . . . . . . . . . . . . . . . . . 255 . . . . Core Remaining (%) 70 | 100 49 96 79 17 . . . . 17 . . . . 83 . . . . 79 67 97 92 Volleys Fired 840 | 3 79 15 41 92 56 42 8 4 47 88 26 32 . 29 42 20 15 6 22 155 4 14 Largest 6 | 2 2 3 4 5 4 5 5 4 4 3 3 3 . 3 4 4 4 3 3 6 1 1 Hottest 454 | 40 40 63 134 181 210 301 301 253 289 208 208 216 . 175 269 247 247 240 240 454 55 55 Shots Fired 2056 | 6 158 45 149 286 160 164 21 16 118 142 78 90 . 60 103 39 40 17 48 297 5 14 Gun 1083 | 6 158 45 149 211 49 55 7 4 3 62 54 35 . 17 40 16 24 11 27 110 . . Cannon 954 | . . . . 72 111 109 14 12 114 80 24 52 . 40 63 23 16 6 21 178 5 14 Launcher 19 | . . . . 3 . . . . 1 . . 3 . 3 . . . . . 9 . . Special . | . . . . . . . . . . . . . . . . . . . . . . . Kinetic 1248 | 6 158 45 133 257 115 109 16 8 19 38 26 52 . 35 43 31 26 . . 112 5 14 Thermal 655 | . . . 7 26 45 55 4 8 63 104 52 35 . 22 60 4 5 11 40 114 . . Explosive 10 | . . . . 3 . . . . 1 . . 3 . 3 . . . . . . . . Electromagnetic 128 | . . . 9 . . . 1 . 35 . . . . . . 4 9 6 6 58 . . Entropic 15 | . . . . . . . . . . . . . . . . . . . 2 13 . . Robot Hit Streak 25 | 3 16 12 12 20 19 25 10 5 13 11 9 21 . 3 10 22 6 7 16 20 1 . Robot Miss Streak 9 | 2 3 4 5 5 3 4 2 2 4 4 2 2 . 9 4 2 6 6 7 8 . . Penetration Max 2 | . . . . 1 1 2 1 . . . . . . . 1 . . . . 2 . . Secondary Targets 6 | . 2 . 3 1 . . . . . . . . . . . . . . . . . . Max Gunslinging Chain 1 | . 1 . 1 1 . . . . . . . . . . . . . . . . . . Shots Hit Robots 1297 | 4 109 29 85 212 123 106 17 12 72 58 50 67 . 20 55 26 23 9 30 187 2 1 Core Hits 700 | 3 47 12 47 150 45 43 7 3 24 18 21 31 . 15 30 14 8 5 8 169 . . Critical Kills 24 | . . . 1 . 2 9 1 . 1 1 1 1 . . 3 1 . . 2 1 . . Critical Parts Destroyed 25 | . . . 1 4 2 7 . . 1 1 3 1 . . 2 . 1 . . 2 . . Critical Strikes 81 | . . . 3 7 8 17 2 . 3 2 4 3 . 1 8 1 2 . 3 17 . . Burn 2 | . . . . 1 . . . . . . . . . . . . . . 1 . . . Meltdown 10 | . . . . . 1 4 . . 1 . . . . . 1 . . . 2 1 . . Destroy 38 | . . . 2 4 3 13 2 . . 2 1 2 . . 6 1 1 . . 1 . . Blast 23 | . . . . 2 3 . . . . . . 1 . 1 1 . 1 . . 14 . . Corrupt 2 | . . . 1 . . . . . 1 . . . . . . . . . . . . . Smash 4 | . . . . . . . . . 1 . 3 . . . . . . . . . . . Sever 1 | . . . . . 1 . . . . . . . . . . . . . . . . . Detonate 1 | . . . . . . . . . . . . . . . . . . . . 1 . . Melee Attacks 268 | . . . 5 14 53 6 3 . 7 18 7 . . . . . 1 1 . 88 28 37 Impact 40 | . . . 5 . . . 3 . 7 18 7 . . . . . . . . . . . Slashing 220 | . . . . 6 53 6 . . . . . . . . . . 1 1 . 88 28 37 Piercing 8 | . . . . 8 . . . . . . . . . . . . . . . . . . Sneak Attacks 12 | . . . . 1 4 . . . . . . . . . . . . . . 6 . 1 Combat Hostiles . | . . . . . . . . . . . . . . . . . . . . . . . Follow-up Attacks . | . . . . . . . . . . . . . . . . . . . . . . . Damage Inflicted 40750 | 40 1253 384 1298 6020 3611 2849 360 341 2328 1793 1580 2378 . 1014 1718 724 672 364 949 10888 92 94 Guns 14311 | 40 1253 384 1298 3267 617 635 55 20 34 1096 797 508 . 102 716 322 351 152 457 2207 . . Cannons 17070 | . . . . 1161 2037 2134 305 321 1809 638 521 1148 . 505 1002 402 277 134 492 4142 42 . Explosions 6400 | . . . . 1497 148 . . . 243 . . 722 . 407 . . . . . 3383 . . Melee 2905 | . . . . 95 809 80 . . 232 46 262 . . . . . 44 54 . 1139 50 94 Ramming 64 | . . . . . . . . . 10 13 . . . . . . . 24 . 17 . . Kinetic 16883 | 40 1253 384 1069 4031 2074 1432 264 129 276 516 329 782 . 305 754 516 428 . . 2259 42 . Thermal 13709 | . . . 96 950 580 1337 96 212 1092 1218 989 874 . 302 964 98 64 202 820 3815 . . Explosive 2580 | . . . . 944 148 . . . 38 . . 722 . 407 . . . . . 321 . . Electromagnetic 3493 | . . . 133 . . . . . 680 . . . . . . 110 136 84 74 2276 . . Impact 540 | . . . . . . . . . 232 46 262 . . . . . . . . . . . Slashing 2365 | . . . . 95 809 80 . . . . . . . . . . 44 54 . 1139 50 94 Piercing . | . . . . . . . . . . . . . . . . . . . . . . . Entropic 1116 | . . . . . . . . . . . . . . . . . . . 55 1061 . . Highest Corruption 70 | . . 2 . 14 . 1 1 1 20 17 6 6 6 6 5 5 5 5 10 70 12 8 Average Corruption 10 | . . 2 . 12 . 1 1 1 1 10 5 6 6 6 4 5 5 4 7 31 12 5 Corruption Purged . | . . . . . . . . . . . . . . . . . . . . . . . Corruption Blocked . | . . . . . . . . . . . . . . . . . . . . . . . Effects 355 | . . 4 . 38 . 4 2 3 14 26 22 21 5 17 12 9 11 3 16 133 5 10 Message Errors 68 | . . . . 8 . 1 1 2 2 5 4 3 . 4 2 3 . 1 7 23 1 1 Matter Fused 82 | . . 2 . 12 . 1 1 . 3 7 4 4 . 5 3 1 4 1 2 27 1 4 Heat Flow Errors 36 | . . . . 2 . . . . 3 1 2 4 . 5 1 1 1 . 2 13 . 1 Energy Discharges 37 | . . 1 . 5 . 1 . . 1 4 4 4 3 3 . . 1 . 1 7 1 1 Parts Rejected 5 | . . . . . . . . . . . . . . . . . 1 . 1 3 . . Parts Fused 3 | . . . . . . . . . . 1 . 1 . . . . . . . 1 . . Data Loss (minor) 46 | . . 1 . 4 . 1 . . 2 3 4 3 2 . 1 2 3 . . 17 1 2 Data Loss (major) 13 | . . . . 2 . . . . 1 2 . . . . 1 1 1 1 1 3 . . Misfires 8 | . . . . . . . . . . . 2 1 . . 1 . . . . 4 . . Alerts 8 | . . . . 2 . . . 1 1 . . . . . . . . . 2 1 . 1 Misdirections 14 | . . . . . . . . . . . . . . . . . . . . 13 1 . Weapon Failures 35 | . . . . 3 . . . . 1 3 2 1 . . 3 1 . . . 21 . . Overload Shots . | . . . . . . . . . . . . . . . . . . . . . . . Overflow Damage 1232 | . . . . 37 49 15 . 6 113 54 103 61 . 5 2 7 . 5 22 712 2 39 Projectiles 690 | . . . . 23 . 15 . 6 22 33 . 61 . 3 2 7 . 5 22 489 2 . Explosions 139 | . . . . 14 . . . . 25 . . . . 2 . . . . . 98 . . Melee 403 | . . . . . 49 . . . 66 21 103 . . . . . . . . 125 . 39 Knockbacks 55 | . . . . 9 7 1 . 1 3 1 . 4 . 2 2 2 2 . . 20 1 . Impact 3 | . . . . . . . . . 2 1 . . . . . . . . . . . . Kinetic 49 | . . . . 9 7 1 . 1 1 . . 4 . 2 2 2 2 . . 17 1 . Secondary 3 | . . . . . . . . . . . . . . . . . . . . 3 . . Self-Inflicted Damage 617 | . . . . 232 40 . . . 63 13 . . . . . . . . . 269 . . Shots 23 | . . . . 5 1 . . . 1 . . . . . . . . . . 16 . . Rammed 10 | . . . . . . . . . 4 . . . . . . . . 3 . 3 . . Targets Rammed 10 | . . . . . . . . . 4 . . . . . . . . 3 . 3 . . Kicked . | . . . . . . . . . . . . . . . . . . . . . . . Crushed . | . . . . . . . . . . . . . . . . . . . . . . . Highest Temperature 596 | . 22 9 397 457 325 523 341 201 510 414 276 434 . 198 458 340 361 310 268 596 56 217 Average Temperature 117 | . 6 5 140 98 85 173 186 93 165 111 89 125 . 84 117 125 145 107 99 119 33 93 Received Heat Transfer 3390 | . 360 51 144 674 494 297 4 9 240 42 115 144 . . 108 110 306 44 32 139 45 32 Effects 60 | . . . 5 5 . 9 6 . 5 7 . 2 . . 7 . . 1 . 13 . . Shutdowns 17 | . . . 1 . . 2 . . 4 2 . 2 . . 1 . . . . 5 . . Energy Bleed 6 | . . . 2 . . 2 . . 1 . . . . . . . . 1 . . . . Interference 26 | . . . . 3 . 4 5 . . 5 . . . . 3 . . . . 6 . . Matter Decay 5 | . . . . 1 . 1 . . . . . . . . 2 . . . . 1 . . Short Circuit 2 | . . . . . . . 1 . . . . . . . 1 . . . . . . . Damage (minor) 3 | . . . 2 1 . . . . . . . . . . . . . . . . . . Damage (major) 1 | . . . . . . . . . . . . . . . . . . . . 1 . . Siege Activations 34 | . . . . . . 2 1 1 1 . 2 5 . 2 2 1 2 1 3 11 . . Total Turns 678 | . . . . . . 32 10 1 33 . 24 71 . 56 32 36 50 20 36 277 . . Longest Duration 67 | . . . . . . 26 10 1 33 . 16 21 . 45 27 36 26 20 19 67 . . Martial Activations . | . . . . . . . . . . . . . . . . . . . . . . . Shielding Activations . | . . . . . . . . . . . . . . . . . . . . . . . Robots Disrupted 5 | . . . . . . . . . 1 . . . . . . . . . . 4 . . Combat Hostiles 5 | . . . . . . . . . 1 . . . . . . . . . . 4 . . Robots Corrupted 7 | . . . . . . . . . 1 1 . . . . . . . . . 5 . . Combat Hostiles 6 | . . . . . . . . . 1 1 . . . . . . . . . 4 . . Parts Fried 17 | . . . . . . . . . 2 . 1 . . . . 1 . 1 . 12 . . Impact Corruptions 6 | . . . . . . . . . 1 1 2 . . . . . . . . 2 . . Robots Melted 15 | . . . . 3 1 4 . . 1 . . 1 . . 1 . . 1 2 1 . . Combat Hostiles 10 | . . . . 1 1 2 . . 1 . . 1 . . . . . 1 2 1 . . Parts Melted 50 | . . . . . . 11 . . 7 3 4 1 . . . . . 2 12 10 . . Heat Transferred 17243 | . . . 110 747 900 2024 150 350 1500 1590 1392 1311 . 450 1294 150 100 350 1350 3475 . . Parts Sabotaged . | . . . . . . . . . . . . . . . . . . . . . . . Parts Stolen . | . . . . . . . . . . . . . . . . . . . . . . . Parts Stripped . | . . . . . . . . . . . . . . . . . . . . . . . Power Chain Reactions 6 | . . . . . . . . . . . . . . . . . . . . 6 . . Alert | -11 -10 -9 -8 -7 -6 -6 -6 -6 -6 -5 -5 -5 -5 -4 -4 -4 -4 -4 -3 -3 -2 -1 ------- Run | Yrd Mat Mat Mat Fac Fac Ext Cet Arc Hub Fac Upp Upp Zhi Pro Fac Upp Upp War Pro Res Res Acc Maximum Alert Level 5 | . 1 . 1 3 1 . 1 . 3 2 . . . . 1 . . . . 5 4 4 Low Security (%) 32 | 100 63 100 43 24 14 100 84 100 27 . . . . . 22 . . . . . . . Level 1 30 | . 36 . 56 14 85 . 15 . 13 55 . . . . 77 . . . . . . . Level 2 15 | . . . . 58 . . . . 27 44 . . . . . . . . . 4 . . Level 3 12 | . . . . 2 . . . . 31 . . . . . . . . . . 60 10 19 Level 4 7 | . . . . . . . . . . . . . . . . . . . . 21 90 80 Level 5 1 | . . . . . . . . . . . . . . . . . . . . 13 . . High Security . | . . . . . . . . . . . . . . . . . . . . . . . Max Security . | . . . . . . . . . . . . . . . . . . . . . . . Peak Influence 2007 | 5 301 109 395 757 371 182 217 162 1058 525 . . . . 397 . . . . 2007 1515 1555 Initial 1046 | . . 99 16 175 360 172 74 74 11 470 . . . . 300 . . . . 900 1046 873 Average 457 | . 120 34 192 447 287 80 154 98 499 399 . . . . 277 . . . . 1082 1333 1348 Influence Increases 14114 | 5 615 145 612 1794 707 672 243 148 1501 401 290 340 . 220 741 200 85 40 125 3618 715 897 Destroy 0b10 Robot/C 6040 | . 440 100 380 760 360 380 140 80 540 200 240 300 . 180 200 180 60 40 100 1060 160 140 Destroy 0b10 Robot/NC 400 | 5 15 10 25 90 25 50 5 . 50 . . . . 10 25 . . . 5 75 10 . Destroy Leader 1144 | . 104 20 76 168 114 54 10 . 154 40 20 40 . 30 60 20 10 . 20 174 20 10 Allied During Kill 946 | . . . . 45 . 78 72 66 578 2 . . . . . . . . . 40 20 45 Successful Hack 321 | . 24 15 5 9 42 70 . . 6 . . . . . 6 . . . . 76 35 33 Disable Machine 345 | . . . . 45 75 . 15 . 45 15 . . . . 60 . . . . 90 . . Destroy Structure 1037 | . 2 . 9 67 46 25 1 2 128 84 . . . . 60 . . . . 346 153 114 Advance Influence 1200 | . . . . . . . . . . . . . . . 300 . . . . 900 . . Partial Spotted 225 | . 15 . . . . . . . . . . . . . 15 . . . . 90 30 75 Lose Combat Pursuer 1320 | . 15 . 15 30 45 15 . . . 60 30 . . . 15 . 15 . . 525 75 480 Miscellaneous 1136 | . . . 102 580 . . . . . . . . . . . . . . . 242 212 . Influence Decreases 12700 | 5 379 340 266 1444 1091 891 190 303 573 970 474 424 123 220 374 353 280 47 137 1758 1118 940 Entered New Map 3533 | . . 137 25 212 377 181 60 113 21 490 146 40 123 . . 137 42 19 12 . 814 584 Time Decay 6488 | 5 369 203 231 652 644 391 130 150 402 470 318 334 . 220 374 206 198 28 115 628 214 206 Search Patrol Dispatched 400 | . . . . 100 . . . . . . . . . . . . . . . 200 . 100 Lost Part 831 | . 10 . 10 100 60 61 . . 70 10 10 50 . . . 10 40 . 10 360 20 10 Lost Ally 587 | . . . . 80 10 147 . 40 80 . . . . . . . . . . 120 70 40 Purge Threat 861 | . . . . 300 . 111 . . . . . . . . . . . . . 450 . . Squads Dispatched 80 | . 6 1 2 20 6 3 1 . 11 3 . . . . 4 . . . . 18 3 2 Investigation 11 | . 3 . 1 . 1 2 1 . 1 . . . . . 1 . . . . 1 . . Extermination 22 | . . . . 5 3 . . . 2 2 . . . . 2 . . . . 6 . 2 Reinforcement 28 | . 3 1 1 6 2 1 . . 4 1 . . . . 1 . . . . 5 3 . Assault 7 | . . . . 1 . . . . . . . . . . . . . . . 6 . . Garrison 12 | . . . . 8 . . . . 4 . . . . . . . . . . . . . Intercept . | . . . . . . . . . . . . . . . . . . . . . . . Searches Triggered 4 | . . . . 1 . . . . . . . . . . . . . . . 2 . 1 Construction Impeded 1 | . . . . . . . . . . . . . . . . . . . . 1 . . Haulers Reinforced 5 | . . . . 1 . . . . . . . . . . . . . . . 2 2 . Active Scanning Responses . | . . . . . . . . . . . . . . . . . . . . . . . Cargo Convoy Interrupts 3 | . . . . 1 1 . . . . . . . . . . . . . . 1 . . Stealth | -11 -10 -9 -8 -7 -6 -6 -6 -6 -6 -5 -5 -5 -5 -4 -4 -4 -4 -4 -3 -3 -2 -1 --------- Run | Yrd Mat Mat Mat Fac Fac Ext Cet Arc Hub Fac Upp Upp Zhi Pro Fac Upp Upp War Pro Res Res Acc Distress Signals 32 | . 1 . 4 2 3 2 1 . 1 1 . . . . 1 . . . . 2 13 1 Communications Jammed 106 | . . . . . . . . . . . . . . . 27 . . . . 79 . . Distress Signals 99 | . . . . . . . . . . . . . . . 27 . . . . 72 . . Times Spotted 580 | . 32 8 24 63 33 26 6 5 37 15 12 15 . 11 21 6 7 40 13 123 38 45 Peak Tracking Total 24 | . 5 3 9 14 5 7 5 2 7 5 4 5 . 4 5 3 3 24 3 16 11 15 Tactical Retreats 39 | . 1 . 1 2 1 1 . . . 2 2 . . . 1 . 1 1 . 13 3 10 Traps | -11 -10 -9 -8 -7 -6 -6 -6 -6 -6 -5 -5 -5 -5 -4 -4 -4 -4 -4 -3 -3 -2 -1 ------- Run | Yrd Mat Mat Mat Fac Fac Ext Cet Arc Hub Fac Upp Upp Zhi Pro Fac Upp Upp War Pro Res Res Acc Traps Triggered 8 | . 2 1 . 2 1 . . . . . . . . . . . . 1 . 1 . . Indirectly . | . . . . . . . . . . . . . . . . . . . . . . . Trap Hack Attempts . | . . . . . . . . . . . . . . . . . . . . . . . Triggered . | . . . . . . . . . . . . . . . . . . . . . . . Disarmed . | . . . . . . . . . . . . . . . . . . . . . . . Reprogrammed . | . . . . . . . . . . . . . . . . . . . . . . . Reused . | . . . . . . . . . . . . . . . . . . . . . . . Traps Extracted . | . . . . . . . . . . . . . . . . . . . . . . . Installed . | . . . . . . . . . . . . . . . . . . . . . . . Triggered . | . . . . . . . . . . . . . . . . . . . . . . . Most Traps Carried 4 | . . . . . 4 . . . . . . . . . . . . . . . . . Machines | -11 -10 -9 -8 -7 -6 -6 -6 -6 -6 -5 -5 -5 -5 -4 -4 -4 -4 -4 -3 -3 -2 -1 ---------- Run | Yrd Mat Mat Mat Fac Fac Ext Cet Arc Hub Fac Upp Upp Zhi Pro Fac Upp Upp War Pro Res Res Acc Machines Disabled 25 | . . . . 3 5 2 1 . 3 1 . . . . 4 . . . . 6 . . Max in Single Turn 2 | . . . . 2 1 . 1 . 2 1 . . . . 2 . . . . 1 . . Garrison Access 5 | . . . . . 1 . . . . . . . . . . . . . . . 1 3 Network Hub 1 | . . . . . . . . . 1 . . . . . . . . . . . . . Energy Cycler 1 | . . . . . . . . . . . . . . . . . . . . . . 1 Machines Repaired . | . . . . . . . . . . . . . . . . . . . . . . . Machines Dismantled . | . . . . . . . . . . . . . . . . . . . . . . . Machines Sabotaged . | . . . . . . . . . . . . . . . . . . . . . . . Overloaded Fab Kills . | . . . . . . . . . . . . . . . . . . . . . . . Hacking | -11 -10 -9 -8 -7 -6 -6 -6 -6 -6 -5 -5 -5 -5 -4 -4 -4 -4 -4 -3 -3 -2 -1 --------- Run | Yrd Mat Mat Mat Fac Fac Ext Cet Arc Hub Fac Upp Upp Zhi Pro Fac Upp Upp War Pro Res Res Acc Machines Accessed 86 | . 7 3 3 6 10 15 1 1 4 1 . . 5 . 3 . . 3 . 12 3 9 Terminals 49 | . 5 2 1 4 4 13 1 . 3 . . . . . 2 . . . . 8 2 4 Fabricators 8 | . . . . . 3 . . . . 1 . . . . 1 . . . . 1 1 1 Repair Stations . | . . . . . . . . . . . . . . . . . . . . . . . Recycling Units 7 | . 2 . 1 . 1 2 . . . . . . . . . . . . . 1 . . Scanalyzers 5 | . . 1 1 1 . . . . . . . . . . . . . . . 2 . . Garrison Access 8 | . . . . 1 2 . . . 1 . . . . . . . . . . . . 4 Total Hacks 238 | . 17 14 6 19 17 36 2 25 10 1 . . 18 . 5 . . 7 . 37 9 15 Successful 139 | . 11 11 4 10 9 18 . 25 3 . . . 18 . 2 . . 7 . 9 5 7 Failed 97 | . 6 3 1 9 8 18 2 . 7 1 . . . . 3 . . . . 27 4 8 Catastrophic 24 | . . . . 1 2 1 2 . 3 1 . . . . 1 . . . . 9 3 1 Database Lockouts 2 | . . . 1 . . . . . . . . . . . . . . . . 1 . . Manual 92 | . 21 5 3 8 7 12 1 2 6 . . . . . 3 . . . . 16 3 5 Terminals 132 | . 14 10 3 12 10 32 2 . 7 . . . . . 3 . . . . 26 5 8 Fabricators 16 | . . . . . 3 . . . . 1 . . . . 2 . . . . 4 4 2 Repair Stations . | . . . . . . . . . . . . . . . . . . . . . . . Recycling Units 11 | . 3 . 1 . 1 4 . . . . . . . . . . . . . 2 . . Scanalyzers 15 | . . 4 2 4 . . . . . . . . . . . . . . . 5 . . Garrison Access 14 | . . . . 3 3 . . . 3 . . . . . . . . . . . . 5 Terminal Hacks 87 | . 5 5 1 4 2 12 . 25 2 . . . 18 . . . . 7 . 4 . 2 Record 39 | . . . . . . . . 25 . . . . 6 . . . . 6 . 1 . 1 Part Schematic 4 | . . . . . . . . . . . . . 4 . . . . . . . . . Robot Analysis 5 | . . . . . . 1 . . . . . . 4 . . . . . . . . . Prototype ID Bank 7 | . . 2 . . 1 . . . . . . . 4 . . . . . . . . . Open Door 8 | . . . . . . 6 . . . . . . . . . . . 1 . . . 1 Level Access Points 1 | . . . . 1 . . . . . . . . . . . . . . . . . . Alert Level 5 | . . 1 1 1 1 1 . . . . . . . . . . . . . . . . Unreport Threat 6 | . . . . 2 . 1 . . . . . . . . . . . . . 3 . . Locate Traps 3 | . 1 . . . . 1 . . 1 . . . . . . . . . . . . . Recall Reinforcements 1 | . . . . . . 1 . . . . . . . . . . . . . . . . Hauler Manifests 1 | . 1 . . . . . . . . . . . . . . . . . . . . . Registered Components 1 | . . 1 . . . . . . . . . . . . . . . . . . . . Zone Layout 6 | . 3 1 . . . 1 . . 1 . . . . . . . . . . . . . Fabricator Hacks 6 | . . . . . 1 . . . . . . . . . 2 . . . . . 2 1 Network Status 3 | . . . . . 1 . . . . . . . . . . . . . . . 1 1 Load Schematic 1 | . . . . . . . . . . . . . . . 1 . . . . . . . Build 2 | . . . . . . . . . . . . . . . 1 . . . . . 1 . Repair Station Hacks . | . . . . . . . . . . . . . . . . . . . . . . . Recycling Unit Hacks 4 | . 1 . 1 . 1 1 . . . . . . . . . . . . . . . . Retrieve Components 4 | . 1 . 1 . 1 1 . . . . . . . . . . . . . . . . Scanalyzer 10 | . . 4 1 4 . . . . . . . . . . . . . . . 1 . . Retrieve Study 10 | . . 4 1 4 . . . . . . . . . . . . . . . 1 . . Garrison Access Hacks 4 | . . . . . 1 . . . . . . . . . . . . . . . . 3 Seal Access 4 | . . . . . 1 . . . . . . . . . . . . . . . . 3 Unauthorized Hacks 28 | . 5 2 1 2 4 5 . . 1 . . . . . . . . . . 4 3 1 Terminals 26 | . 5 2 1 2 4 5 . . 1 . . . . . . . . . . 2 3 1 Assimilate 2 | . . . . . 1 . . . . . . . . . . . . . . . 1 . Botnet 24 | . 5 2 1 2 3 5 . . 1 . . . . . . . . . . 2 2 1 Fabricators 2 | . . . . . . . . . . . . . . . . . . . . 2 . . Liberate 1 | . . . . . . . . . . . . . . . . . . . . 1 . . Fabnet 1 | . . . . . . . . . . . . . . . . . . . . 1 . . Repair Stations . | . . . . . . . . . . . . . . . . . . . . . . . Recycling Units . | . . . . . . . . . . . . . . . . . . . . . . . Scanalyzers . | . . . . . . . . . . . . . . . . . . . . . . . Garrison Access . | . . . . . . . . . . . . . . . . . . . . . . . Data Cores Recovered 1 | . . . . . . . . . 1 . . . . . . . . . . . . . Used . | . . . . . . . . . . . . . . . . . . . . . . . Hacking Detections 63 | . 7 3 1 5 7 11 1 . 4 1 . . . . 3 . . . . 12 3 5 Full Trace Events 7 | . 1 . . . 1 1 1 . 1 . . . . . 1 . . . . 1 . . Feedback Events . | . . . . . . . . . . . . . . . . . . . . . . . Feedback Blocked . | . . . . . . . . . . . . . . . . . . . . . . . Robot Schematics Acquired . | . . . . . . . . . . . . . . . . . . . . . . . Robots Built . | . . . . . . . . . . . . . . . . . . . . . . . Authchips . | . . . . . . . . . . . . . . . . . . . . . . . Time . | . . . . . . . . . . . . . . . . . . . . . . . Total Robot Build Rating . | . . . . . . . . . . . . . . . . . . . . . . . Part Schematics Acquired 4 | . . . . . . . . . . . . . 4 . . . . . . . . . Parts Built 2 | . . . . . . . . . . . . . . . . . . . . . 2 . Authchips . | . . . . . . . . . . . . . . . . . . . . . . . Time 238 | . . . . . . . . . . . . . . . 169 . . . . . 69 . Total Part Build Rating 18 | . . . . . . . . . . . . . . . . . . . . . 18 . Part Studies Acquired 10 | . . 4 1 4 . . . . . . . . . . . . . . . 1 . . Parts Repaired . | . . . . . . . . . . . . . . . . . . . . . . . Time . | . . . . . . . . . . . . . . . . . . . . . . . Parts Recycled . | . . . . . . . . . . . . . . . . . . . . . . . Recycled Matter . | . . . . . . . . . . . . . . . . . . . . . . . Retrieved Matter . | . . . . . . . . . . . . . . . . . . . . . . . Retrieved Components 11 | . 5 . 1 . 3 2 . . . . . . . . . . . . . . . . Parts Scanalyzed . | . . . . . . . . . . . . . . . . . . . . . . . Part Schematics Acquired . | . . . . . . . . . . . . . . . . . . . . . . . Parts Damaged . | . . . . . . . . . . . . . . . . . . . . . . . Bothacking | -11 -10 -9 -8 -7 -6 -6 -6 -6 -6 -5 -5 -5 -5 -4 -4 -4 -4 -4 -3 -3 -2 -1 ------------ Run | Yrd Mat Mat Mat Fac Fac Ext Cet Arc Hub Fac Upp Upp Zhi Pro Fac Upp Upp War Pro Res Res Acc Used RIF Installer . | . . . . . . . . . . . . . . . . . . . . . . . Robots Hacked 3 | . . . . . . . . . . . . . . . . . . . . . 2 1 Non-combat . | . . . . . . . . . . . . . . . . . . . . . . . Combat 3 | . . . . . . . . . . . . . . . . . . . . . 2 1 Robot Hacks Applied . | . . . . . . . . . . . . . . . . . . . . . . . Relay Couplers Released 2 | . . . . . . . . . . . . . . . . . . . . . 2 . Machine Destruction 2 | . . . . . . . . . . . . . . . . . . . . . 2 . Fabnet Peak Effective % 3 | . . . . . . . . . . . . . . . . . . . . . 3 1 Autooverrided 3 | . . . . . . . . . . . . . . . . . . . . . 2 1 Robots Rewired 6 | . . . . 1 . 4 . . . . . . . . . . . . . 1 . . Allies Hacked 2 | . . . . . . . . . . . . . . . . . . . . 1 . 1 Hacks Repelled . | . . . . . . . . . . . . . . . . . . . . . . . Allies | -11 -10 -9 -8 -7 -6 -6 -6 -6 -6 -5 -5 -5 -5 -4 -4 -4 -4 -4 -3 -3 -2 -1 -------- Run | Yrd Mat Mat Mat Fac Fac Ext Cet Arc Hub Fac Upp Upp Zhi Pro Fac Upp Upp War Pro Res Res Acc Total Allies 38 | . . . . 4 1 14 4 . . 1 . . . . . . . . . 6 5 3 Largest Group 8 | . . . . 3 1 8 8 7 4 1 . . . . . . . . . 3 2 2 Highest-Rated Group 620 | . . . . 36 10 266 620 524 312 54 . . . . . . . . . 126 296 220 Highest-Rated Ally 152 | . . . . 21 10 152 152 152 96 54 . . . . . . . . . 119 148 110 Total Orders 5 | . . . . . . . . . . . . 3 . 2 . . . . . . . . EXPLORE 3 | . . . . . . . . . . . . 2 . 1 . . . . . . . . RETURN 2 | . . . . . . . . . . . . 1 . 1 . . . . . . . . Ally Attacks 404 | . . . . 55 . 55 29 32 94 1 . . . . . . . . . 43 82 13 Total Damage 11105 | . . . . 748 . 977 609 1089 3302 9 . . . . . . . . . 1619 2339 413 Kills 80 | . . . . 8 . 10 6 4 25 . . . . . . . . . . 9 11 7 Allies Corrupted 4 | . . . . . . . . . 2 . . . . . . . . . . 2 . . Allies Melted 1 | . . . . . . . . . . . . . . . . . . . . 1 . . X0-1V1 Amusement Gains 411 | . 4 10 10 70 6 2 . . 50 10 . . . . 30 . 2 95 . 70 10 42 Good Acts 145 | . . 2 4 14 17 7 . 1 3 11 2 1 . 1 5 4 3 5 1 43 10 11 Bad Acts 90 | . . 3 3 6 4 4 2 2 7 8 1 1 . 1 2 1 3 . 3 16 16 7 Intel | -11 -10 -9 -8 -7 -6 -6 -6 -6 -6 -5 -5 -5 -5 -4 -4 -4 -4 -4 -3 -3 -2 -1 ------- Run | Yrd Mat Mat Mat Fac Fac Ext Cet Arc Hub Fac Upp Upp Zhi Pro Fac Upp Upp War Pro Res Res Acc Active Infowar (turns) 16072 | 21 1258 717 345 . 2330 489 . . 1212 1182 718 745 258 691 863 427 401 838 543 2168 440 426 Optics 8815 | . . . . . . . . . . 973 718 745 258 691 863 427 401 838 543 1492 440 426 IFF 480 | . . . . . . . . . . . . . . . . . . . . 37 430 13 Seismic 5407 | 21 1258 717 345 . 2330 489 . . . . . . . . 107 140 . . . . . . Decoding 10898 | . . . . . . . . . 1212 1168 718 745 258 691 863 427 401 838 543 2168 440 426 Cloaking 368 | . . . . . . . . . . . . . . . . . . . . . . 368 Spoofing 2 | . . . . . 2 . . . . . . . . . . . . . . . . . Jamming 3682 | . . . . . . . . . . . . . . . 609 427 401 762 60 1306 . 117 Robot Analysis Total 5 | . . . . . . 1 . . . . . . 4 . . . . . . . . . Derelict Logs Recovered 5 | . . . . . . . . . . . 2 . . 1 . . 2 . . . . . Drone Launches 4 | . . . . . . . . . . . . 2 . 2 . . . . . . . . Drone Recoveries 4 | . . . . . . . . . . . . 2 . 2 . . . . . . . . Decoded 0b10 Intel 163 | . . . . . . . . . 33 24 . . . . 22 . . . . 62 11 11 Traps 14 | . . . . . . . . . 1 3 . . . . . . . . . 9 . 1 Emergency Access 14 | . . . . . . . . . 1 1 . . . . 3 . . . . 6 3 . Items 91 | . . . . . . . . . 26 12 . . . . 10 . . . . 33 2 8 Machines 14 | . . . . . . . . . 1 3 . . . . 4 . . . . 3 2 1 Patrols 11 | . . . . . . . . . . . . . . . 3 . . . . 5 3 . Guards 15 | . . . . . . . . . 4 4 . . . . 1 . . . . 4 1 1 Exits 4 | . . . . . . . . . . 1 . . . . 1 . . . . 2 . . Exploration | -11 -10 -9 -8 -7 -6 -6 -6 -6 -6 -5 -5 -5 -5 -4 -4 -4 -4 -4 -3 -3 -2 -1 ------------- Run | Yrd Mat Mat Mat Fac Fac Ext Cet Arc Hub Fac Upp Upp Zhi Pro Fac Upp Upp War Pro Res Res Acc Turns Passed 19985 | 85 1258 717 515 2408 2332 1135 272 303 1260 1182 718 745 258 691 863 427 401 838 543 2168 440 426 Spaces Moved 11525 | 42 711 335 237 1157 985 519 130 139 443 460 345 314 148 334 412 212 191 458 270 1701 950 1032 Core 298 | 7 . . . . . . . . . . . . . . . . . . . 291 . . Treads 7625 | 35 348 186 21 1157 985 519 130 139 443 460 345 314 148 334 412 212 191 458 270 518 . . Legs . | . . . . . . . . . . . . . . . . . . . . . . . Wheels 728 | . 363 149 216 . . . . . . . . . . . . . . . . . . . Hover 1 | . . . . . . . . . . . . . . . . . . . . 1 . . Flight 2873 | . . . . . . . . . . . . . . . . . . . . 891 950 1032 Fastest Speed 20 | 50 110 115 130 160 161 160 160 160 160 160 160 160 163 163 163 163 163 163 163 20 21 23 Average Speed 128 | 151 134 186 132 168 184 163 161 200 239 160 160 162 163 163 163 163 163 163 163 69 23 23 Slowest Speed 320 | 160 240 240 160 210 210 320 240 240 240 160 160 163 163 163 165 163 163 163 163 163 95 24 Overloaded Moves . | . . . . . . . . . . . . . . . . . . . . . . . Propulsion Burnouts . | . . . . . . . . . . . . . . . . . . . . . . . Robots Hopped 15 | . . . . . . . . . . . . . . . . . . . . 3 5 7 Potential Cave-ins 51 | . . . . . 10 . . . 5 11 . . . . . . . . . 12 2 11 Cave-ins Triggered . | . . . . . . . . . . . . . . . . . . . . . . . Exploration Rate (%) 49 | 3 98 38 22 34 28 74 66 88 45 12 71 71 61 57 20 37 54 68 50 56 33 41 Regions Visited 22 Branch Regions 12 Pre-discovered Areas 4 | . . . . . . . . . . . . . 3 . . . 1 . . . . . Known Exits Taken 11 | . . . 1 1 . . . . 1 . 1 . . 1 . 1 1 1 1 1 1 . Unknown Exits Taken 11 | 1 1 1 . . 1 1 1 1 . 1 . 1 1 . 1 . . . . . . . Scrap Searched 7 | . . . . . . . . . . . 4 1 . 1 . . . . 1 . . . Spaces Dug 301 | . . . 4 6 47 . . . 9 46 . . . . 14 . . . . 96 30 49 Terrain Destroyed 875 | . . . 4 63 61 21 1 . 174 78 8 58 . 68 35 7 5 1 7 205 30 49 Melee 177 | . . . 4 6 28 . . . . 15 . . . . . . . . . 62 26 36 Projectile 363 | . . . . 12 28 21 1 . 31 63 8 15 . 25 35 7 5 1 7 87 4 13 AOE 335 | . . . . 45 5 . . . 143 . . 43 . 43 . . . . . 56 . . Terrain Rammed 1 | . . . . . . . . . . 1 . . . . . . . . . . . . Walls Destroyed . | . . . . . . . . . . . . . . . . . . . . . . . Machines Disabled . | . . . . . . . . . . . . . . . . . . . . . . . Actions | -11 -10 -9 -8 -7 -6 -6 -6 -6 -6 -5 -5 -5 -5 -4 -4 -4 -4 -4 -3 -3 -2 -1 --------- Run | Yrd Mat Mat Mat Fac Fac Ext Cet Arc Hub Fac Upp Upp Zhi Pro Fac Upp Upp War Pro Res Res Acc Total 14635 | 55 866 397 340 1398 1318 696 170 154 531 751 441 483 162 430 531 260 246 532 328 2290 1117 1139 Wait 1326 | . 48 31 27 56 149 70 19 9 16 132 59 113 . 66 54 29 35 47 30 186 99 51 Move 11474 | 41 710 334 236 1156 984 518 129 138 442 459 344 313 147 333 411 211 190 457 269 1695 940 1017 Hop 13 | . . . . . . . . . . . . . . . . . . . . 2 4 7 Pick Up 148 | 4 16 6 9 12 23 9 2 1 3 13 . 8 . . 5 . 1 4 . 21 7 4 Fast Attach 112 | 7 . . 2 3 7 3 . 1 1 9 . 3 6 . 4 . 3 6 1 43 11 2 Attach 85 | . 1 2 3 9 9 5 . . 5 6 1 7 . . 1 . 1 . 1 25 6 3 Detach 23 | . . . . . . 1 . . . 4 . 2 . . . . . . 1 12 3 . Swap 115 | . 4 3 8 23 14 3 6 . 4 10 4 3 4 2 4 . . 2 3 13 4 1 Drop 142 | . 8 6 9 13 23 8 3 1 2 11 . 2 5 . 10 . . 6 1 20 11 3 Fire 840 | 3 79 15 41 92 56 42 8 4 47 88 26 32 . 29 42 20 15 6 22 155 4 14 Melee 268 | . . . 5 14 53 6 3 . 7 18 7 . . . . . 1 1 . 88 28 37 Ram 2 | . . . . . . . . . . 1 . . . . . . . . . 1 . . Kick . | . . . . . . . . . . . . . . . . . . . . . . . Crush 9 | . . . . . . . . . 4 . . . . . . . . 3 . 2 . . Escape Stasis . | . . . . . . . . . . . . . . . . . . . . . . . Rewire 55 | . . . . 20 . 31 . . . . . . . . . . . . . 4 . . Trap . | . . . . . . . . . . . . . . . . . . . . . . . Miscellaneous 23 | . . . . . . . . . . . . . . . . . . . . 23 . . Route ------- -11/Scrapyard -10/Materials (discovered 5 exits: *Mat x3 / [*Min] / [*Sub]) -9/Materials (discovered 2 exits: *Mat / [*Sto]) -8/Materials -7/Factory (discovered 4 exits: *Fac x4) -6/Factory (discovered 2 exits: Fac / *Ext) -6/Extension (discovered 2 exits: *Fac / *Cet) -6/Cetus -6/Archives (discovered 3 exits: *Fac / *Hub x2) -6/Hub_04(d) (discovered 2 exits: *Fac x2) -5/Factory (discovered 3 exits: Fac x2 / [*Upp]) -5/Upper Caves -5/Upper Caves -5/Zhirov -4/Proximity Caves -4/Factory (discovered 2 exits: Res / [*Upp]) -4/Upper Caves -4/Upper Caves (discovered 2 exits: Res / *War) -4/Warlord -3/Proximity Caves -3/Research (discovered 4 exits: *Res x3 / Qua) -2/Research -1/Access (discovered 2 exits: [*Sur] / [*Com]) To Epsilon Eridani History --------- Turn | Location | Event 35 | -11/Scrapyard | Discovered new exit (range 16) 86 | -11/Scrapyard | Entered Materials 315 | -10/Materials | Build established: Mutant 328 | -10/Materials | Discovered new exit (range 16) 383 | -10/Materials | Discovered new exit (range 10) 462 | -10/Materials | Discovered new exit (range 15) 964 | -10/Materials | Discovered new exit (range 4) 986 | -10/Materials | Derelicts attacked the area 1040 | -10/Materials | Core integrity fell below 50% 1330 | -10/Materials | Discovered new exit (range 8) 1335 | -10/Materials | Prayed at D.C.S.S. Altar Unit 1344 | -10/Materials | Entered another Materials area 1344 | -9/Materials | Evolved 2 slots: Utility x1, Weapon x1 1429 | -9/Materials | Discovered new exit (range 15) 1630 | -9/Materials | Build established: Gunner 1675 | -9/Materials | Matter capacity permanently improved by X0-1V1 (+200) 1938 | -9/Materials | Melee accuracy permanently improved by X0-1V1 (+5%) 1965 | -9/Materials | Build established: Scavenger-Gunner 1986 | -9/Materials | X0-1V1 sent hostile G-34 Mercenary (x3) 2031 | -9/Materials | Discovered new exit (range 6) 2061 | -9/Materials | Entered another Materials area 2061 | -8/Materials | Evolved 2 slots: Utility x1, Weapon x1 2240 | -8/Materials | Identified exit to Factory 2240 | -8/Materials | X0-1V1 revealed exit location to -7/Factory 2284 | -8/Materials | X0-1V1 added 0b10 threat records associated with you (minor) 2304 | -8/Materials | Central database locked down 2418 | -8/Materials | Build established: Scavenger-Tank 2450 | -8/Materials | Destroyed 8 combat bots 2576 | -8/Materials | Entered Factory 2576 | -7/Factory | Evolved 2 slots: Propulsion x1, Utility x1 2655 | -7/Factory | X0-1V1 sent you to a vault 2748 | -7/Factory | Garrison activated, responded to threat 2813 | -7/Factory | Mass support permanently improved by X0-1V1 (+6) 2850 | -7/Factory | X0-1V1 mutated your Utility slot to Weapon slot 3117 | -7/Factory | X0-1V1 added 0b10 threat records associated with you (major) 3160 | -7/Factory | Build established: Gunner 3376 | -7/Factory | Search patrols dispatched 3399 | -7/Factory | X0-1V1 added 0b10 threat records associated with you (major) 3535 | -7/Factory | Cargo convoy interrupted 3541 | -7/Factory | Garrison activated, responded to threat 3578 | -7/Factory | System corruption reached 10% 3598 | -7/Factory | Lost 3 parts (1u2w) 3605 | -7/Factory | Destroyed 7 combat bots 3656 | -7/Factory | Garrison activated, responded to threat 3670 | -7/Factory | Core integrity fell below 50% 4150 | -7/Factory | X0-1V1 foreshadows a heat wave 4176 | -7/Factory | First assault squad dispatched 4255 | -7/Factory | Garrison activated, responded to threat 4297 | -7/Factory | X0-1V1 downgraded hostiles (x1) 4390 | -7/Factory | Ambient heat levels rising (+10) 4606 | -7/Factory | Ambient heat levels rising (+10) 4615 | -7/Factory | Identified exit to Factory 4620 | -7/Factory | Allied Derelicts emerged from ambush trap array 4811 | -7/Factory | Ambient heat levels falling (-10) 4926 | -7/Factory | Core integrity fell below 20% 4984 | -7/Factory | Entered another Factory area 4984 | -6/Factory | Evolved 2 slots: Utility x2 5084 | -6/Factory | X0-1V1 activates XOMVISION 5526 | -6/Factory | Spotted B-75 Beast 5565 | -6/Factory | Destroyed B-75 Beast 6063 | -6/Factory | X0-1V1 sent you to a vault 6073 | -6/Factory | Found Prototype Slashing Weapon 6073 | -6/Factory | Identified Scimitar of Distortion 6153 | -6/Factory | Found Hvy. Reactive Plating 6214 | -6/Factory | Identified exit to Factory 6214 | -6/Factory | X0-1V1 revealed exit location to -5/Factory 6279 | -6/Factory | Cargo convoy interrupted 6553 | -6/Factory | X0-1V1 downgraded hostiles (x1) 7178 | -6/Factory | Build established: Tank 7241 | -6/Factory | Discovered new exit (range 13) 7316 | -6/Factory | Entered Extension 7648 | -6/Extension | Rescued a captive Derelict 7650 | -6/Extension | Rescued a captive Derelict 7707 | -6/Extension | Spotted B-75 Beast 7714 | -6/Extension | Rescued a captive Derelict 7715 | -6/Extension | Rescued a captive Derelict 7749 | -6/Extension | Spotted B-75 Beast 7780 | -6/Extension | Destroyed B-75 Beast 7801 | -6/Extension | Lost 8 allies 7836 | -6/Extension | Lost 5 parts (2n1u2w) 7841 | -6/Extension | X0-1V1 sent allied Guru (x2) 7842 | -6/Extension | X0-1V1 upgraded hostiles (x1) 7842 | -6/Extension | Spotted B-86 Titan 7853 | -6/Extension | Weapon slot count temporarily expanded by X0-1V1 (+1) 7859 | -6/Extension | Destroyed B-86 Titan 8106 | -6/Extension | Rescued A7 8134 | -6/Extension | Rescued a captive Derelict 8167 | -6/Extension | Rescued a captive Derelict 8229 | -6/Extension | Build established: Executioner 8330 | -6/Extension | Rescued a captive Derelict 8427 | -6/Extension | Discovered exit to Factory (range 10) 8429 | -6/Extension | Discovered new exit (range 6) 8451 | -6/Extension | Entered Cetus 8451 | -6/Cetus | Accompanied by 4 allies (A7) 8456 | -6/Cetus | Acquired a Cetus Manufacturing Module code from A7 8472 | -6/Cetus | Spotted Cetus Guard 8472 | -6/Cetus | Spotted Cetus Guard 8476 | -6/Cetus | Spotted Cetus Guard 8479 | -6/Cetus | Spotted Cetus Guard 8482 | -6/Cetus | Allies destroyed Cetus Guard 8484 | -6/Cetus | Destroyed Cetus Guard 8489 | -6/Cetus | Allies destroyed Cetus Guard 8495 | -6/Cetus | Allies destroyed Cetus Guard 8601 | -6/Cetus | Started Cetus Manufacturing Module 8626 | -6/Cetus | Manufactured an Enhanced Grunt 8651 | -6/Cetus | Manufactured an Enhanced Grunt 8651 | -6/Cetus | Door terminal overloaded 8656 | -6/Cetus | Escorted A7 to Cetus Mainframe 8676 | -6/Cetus | Manufactured an Enhanced Grunt 8688 | -6/Cetus | Discovered new exit (range 12) 8701 | -6/Cetus | Manufactured an Enhanced Grunt 8723 | -6/Cetus | Entered Archives 8723 | -6/Archives | Accompanied by 7 allies (A7) 8728 | -6/Archives | Received a hacking code to weaken MAIN.C 8744 | -6/Archives | X0-1V1 vaporized surrounding terrain (radius 16) 8780 | -6/Archives | Unable to access archive contents 8797 | -6/Archives | Unable to access archive contents 8818 | -6/Archives | Unable to access archive contents 8834 | -6/Archives | Unable to access archive contents 8836 | -6/Archives | X0-1V1 mutated your Weapon slot to Power slot 8876 | -6/Archives | Discovered new exit (range 12) 8967 | -6/Archives | Discovered exit to Factory (range 13) 8991 | -6/Archives | Discovered new exit (range 13) 9026 | -6/Archives | Entered Hub_04(d) 9026 | -6/Hub_04(d) | Accompanied by 4 allies 9072 | -6/Hub_04(d) | X0-1V1 mutated your Propulsion slot to Utility slot 9156 | -6/Hub_04(d) | Build established: Scavenger-Tank 9260 | -6/Hub_04(d) | X0-1V1 redirected Transport squads to designated parking area 9392 | -6/Hub_04(d) | X0-1V1 announced a LAN party 9457 | -6/Hub_04(d) | Garrison activated, responded to threat 9622 | -6/Hub_04(d) | Garrison activated, responded to threat 9672 | -6/Hub_04(d) | Core integrity restored by X0-1V1 (+115) 9902 | -6/Hub_04(d) | Discovered exit to Factory (range 8) 9942 | -6/Hub_04(d) | Discovered exit to Factory (range 14) 10194 | -6/Hub_04(d) | Network Hub disabled 10207 | -6/Hub_04(d) | Spotted Lightning 10210 | -6/Hub_04(d) | Spotted Lightning 10214 | -6/Hub_04(d) | Spotted Lightning 10215 | -6/Hub_04(d) | Destroyed Lightning 10234 | -6/Hub_04(d) | System corruption reached 10% 10247 | -6/Hub_04(d) | Spotted Lightning 10250 | -6/Hub_04(d) | Spotted Lightning 10252 | -6/Hub_04(d) | Spotted Lightning 10256 | -6/Hub_04(d) | Core integrity fell below 50% 10275 | -6/Hub_04(d) | Core integrity fell below 20% 10286 | -6/Hub_04(d) | Entered Factory 10286 | -5/Factory | Evolved 2 slots: Propulsion x2 10315 | -5/Factory | Lost 5 parts (1p1n2u1w) 10403 | -5/Factory | X0-1V1 sent you to a vault 10405 | -5/Factory | X0-1V1 activates XOMVISION 10420 | -5/Factory | Found Prototype Slashing Weapon 10420 | -5/Factory | Identified Hvy. Scimitar of Distortion 10469 | -5/Factory | Found Prototype Processor 10469 | -5/Factory | Identified Exp. Terrain Scan Processor 10557 | -5/Factory | Found Prototype Device 10557 | -5/Factory | Identified Adv. EM Shield 10783 | -5/Factory | Identified exit to Factory 10800 | -5/Factory | X0-1V1 redirected Transport squads to designated parking area 11039 | -5/Factory | System corruption reached 10% 11100 | -5/Factory | X0-1V1 revealed exit location to -4/Factory 11231 | -5/Factory | X0-1V1 activates XOMVISION 11277 | -5/Factory | X0-1V1 turns hostiles against one another 11427 | -5/Factory | Discovered new exit (range 10) 11468 | -5/Factory | Entered Upper Caves 11470 | -5/Upper Caves | Ambushed by research squad 11495 | -5/Upper Caves | Learned Factory stockpile data 11679 | -5/Upper Caves | Encountered a Warlord checkpoint 11895 | -5/Upper Caves | Identified exit to Upper Caves 11895 | -5/Upper Caves | X0-1V1 revealed exit location to -5/Upper Caves 12012 | -5/Upper Caves | Attracted the attention of an 0b10 checkpoint 12186 | -5/Upper Caves | Entered another Upper Caves area 12269 | -5/Upper Caves | X0-1V1 mutated your Weapon slot to Propulsion slot 12396 | -5/Upper Caves | Attracted the attention of an 0b10 checkpoint 12558 | -5/Upper Caves | Lost 3 parts (1n2u) 12920 | -5/Upper Caves | Discovered new exit (range 8) 12931 | -5/Upper Caves | Entered Zhirov 12933 | -5/Zhirov | Discovered new exit (range 3) 12962 | -5/Zhirov | Met Zhirov 12993 | -5/Zhirov | Learned location of Quarantine (-3) 12993 | -5/Zhirov | Learned location of Testing (-2) 12993 | -5/Zhirov | Learned location of Command (-1) 13008 | -5/Zhirov | Zhirov requested help retrieving the SGEMP Prototype 13039 | -5/Zhirov | Found Alien Artifact 13039 | -5/Zhirov | Identified Integrated Reactor 13039 | -5/Zhirov | Installed Integrated Reactor, increased core energy generation (+10) 13189 | -5/Zhirov | Entered Proximity Caves 13271 | -4/Proximity Caves | Spotter reported a threat 13463 | -4/Proximity Caves | Build established: Tank 13489 | -4/Proximity Caves | Spotter reported a threat 13515 | -4/Proximity Caves | X0-1V1 activates XOMVISION 13696 | -4/Proximity Caves | Learned Research non-interactive machine intel 13846 | -4/Proximity Caves | Discovered exit to Factory (range 23) 13880 | -4/Proximity Caves | Entered Factory 13880 | -4/Factory | Evolved 2 slots: Utility x1, Weapon x1 13939 | -4/Factory | X0-1V1 announced a LAN party 13982 | -4/Factory | Spotted B-86 Titan 14245 | -4/Factory | X0-1V1 downgraded hostiles (x1) 14373 | -4/Factory | X0-1V1 sent you to a vault 14386 | -4/Factory | Identified exit to Research 14404 | -4/Factory | Found Prototype Protection 14404 | -4/Factory | Identified Centrium Heavy Armor Plating 14543 | -4/Factory | X0-1V1 redirected Transport squads to designated parking area 14692 | -4/Factory | Discovered new exit (range 16) 14743 | -4/Factory | Entered Upper Caves 14815 | -4/Upper Caves | Identified exit to Upper Caves 14815 | -4/Upper Caves | X0-1V1 revealed exit location to -4/Upper Caves 15170 | -4/Upper Caves | Entered another Upper Caves area 15171 | -4/Upper Caves | Identified exit to Warlord 15541 | -4/Upper Caves | Spotted B-86 Titan 15541 | -4/Upper Caves | X0-1V1 sent you into danger 15552 | -4/Upper Caves | Weapon slot count temporarily expanded by X0-1V1 (+3) 15571 | -4/Upper Caves | Entered Warlord 15630 | -4/Warlord | System corruption cleaned by Quarantine Array 15897 | -4/Warlord | Met Warlord 15922 | -4/Warlord | Warlord's base attacked by MAIN.C 15984 | -4/Warlord | Identified exit to Proximity Caves 15984 | -4/Warlord | X0-1V1 revealed exit location to -3/Proximity Caves 16082 | -4/Warlord | Found Prototype Energy Gun 16085 | -4/Warlord | Found Prototype Energy Gun 16168 | -4/Warlord | Found Prototype Device 16168 | -4/Warlord | Identified Minesniffer Drone Bay 16272 | -4/Warlord | Warlord forces counterattacked 16287 | -4/Warlord | Spotted Striker 16290 | -4/Warlord | Spotted Striker 16313 | -4/Warlord | Destroyed Striker 16343 | -4/Warlord | Lost 7 allies 16346 | -4/Warlord | Spotted Striker 16354 | -4/Warlord | P-80 Master assimilated allied 66-H5H(g) 16357 | -4/Warlord | Attacked by Warlord forces 16409 | -4/Warlord | Entered Proximity Caves 16411 | -3/Proximity Caves | Spotter reported a threat 16412 | -3/Proximity Caves | Spotter reported a threat 16465 | -3/Proximity Caves | Spotter reported a threat 16535 | -3/Proximity Caves | Spotter reported a threat 16581 | -3/Proximity Caves | Spotter reported a threat 16707 | -3/Proximity Caves | Spotter reported a threat 16744 | -3/Proximity Caves | System corruption reached 10% 16824 | -3/Proximity Caves | Spotted B-86 Titan 16889 | -3/Proximity Caves | X0-1V1 upgraded hostiles (x1) 16891 | -3/Proximity Caves | Spotted B-90 Cyclops 16904 | -3/Proximity Caves | Identified Vortex Shotgun (x2) 16908 | -3/Proximity Caves | Destroyed B-90 Cyclops 16931 | -3/Proximity Caves | Discovered exit to Research (range 12) 16950 | -3/Proximity Caves | X0-1V1 sent hostile Guerrilla (x2) 16952 | -3/Proximity Caves | Entered Research 16952 | -3/Research | Evolved 2 slots: Propulsion x1, Utility x1 16953 | -3/Research | Loaded intel: 63 non-interactive machine locations 17104 | -3/Research | X0-1V1 mutated your Utility slot to Weapon slot 17202 | -3/Research | Search patrols dispatched 17236 | -3/Research | X0-1V1 enhanced Transport squad support 17239 | -3/Research | System corruption reached 10% 17345 | -3/Research | X0-1V1 sent you to a vault 17370 | -3/Research | X0-1V1 whisked you away to safety 17452 | -3/Research | Search patrols dispatched 17624 | -3/Research | Identified exit to Research 17624 | -3/Research | X0-1V1 revealed exit location to -2/Research 17685 | -3/Research | Weapon slot count temporarily expanded by X0-1V1 (+2) 17812 | -3/Research | Lost 3 parts (1n2u) 17952 | -3/Research | First assault squad dispatched 17992 | -3/Research | Found Prototype Device 17992 | -3/Research | Identified Adv. Particle Accelerator 18000 | -3/Research | Found Prototype Special Weapon 18000 | -3/Research | Identified Exp. Remote Datajack 18189 | -3/Research | X0-1V1 activates XOMVISION 18281 | -3/Research | Found Gamma Bomb Array 18288 | -3/Research | Build established: Executioner 18303 | -3/Research | Identified exit to Quarantine 18365 | -3/Research | Cargo convoy interrupted 18384 | -3/Research | System corruption reached 30% 18431 | -3/Research | Core integrity fell below 50% 18450 | -3/Research | Core integrity fell below 20% 18450 | -3/Research | Spotted B-86 Titan 18456 | -3/Research | Destroyed 15 combat bots 18475 | -3/Research | Lost 21 parts (3p6n3u9w) 18609 | -3/Research | X0-1V1 activates XOMVISION 18781 | -3/Research | Spotted B-86 Titan 18796 | -3/Research | X0-1V1 mutated your Propulsion slot to Weapon slot 18799 | -3/Research | Core integrity restored by X0-1V1 (+161) 18819 | -3/Research | X0-1V1 activates XOMVISION 18833 | -3/Research | X0-1V1 sent allied Striker (x1) 18891 | -3/Research | X0-1V1 revealed exit location to -2/Research 18902 | -3/Research | X0-1V1 sent allied Executioner (x1) 18932 | -3/Research | X0-1V1 mutated your Weapon slot to Propulsion slot 18949 | -3/Research | X0-1V1 mutated your Propulsion slot to Utility slot 18987 | -3/Research | X0-1V1 added 0b10 threat records associated with you (major) 19031 | -3/Research | Found Gamma Bomb Array 19045 | -3/Research | Watched by a mysterious "MATRIX" hacker 19063 | -3/Research | Build established: Sprinter 19074 | -3/Research | Central database locked down 19120 | -3/Research | Entered another Research area 19120 | -2/Research | Warlord forces began assault on 0b10 19120 | -2/Research | Evolved 2 slots: Propulsion x1, Utility x1 19123 | -2/Research | X0-1V1 redirected Transport squads to designated parking area 19164 | -2/Research | X0-1V1 added 0b10 threat records associated with you (considerable) 19230 | -2/Research | Research machine network offline 19234 | -2/Research | Fabricated Adv. Cloaking Device (x2) 19237 | -2/Research | Spotted HG-KXC(K) 19237 | -2/Research | Attacked by Warlord 19242 | -2/Research | X0-1V1 released a cloud of subatomizers 19285 | -2/Research | X0-1V1 tapped a No Entrance sign 19296 | -2/Research | X0-1V1 sent allied B-90 Cyclops (x2) 19301 | -2/Research | Spotted AH-UVB(K) 19313 | -2/Research | Spotted 2K-4X2(L) 19341 | -2/Research | Spotted B-90 Cyclops 19368 | -2/Research | Spotted B-90 Cyclops 19369 | -2/Research | Sensors blinded by X0-1V1 19370 | -2/Research | X0-1V1 sent you to a vault 19376 | -2/Research | Found Prototype Energy Cannon 19376 | -2/Research | Identified YOLO Cannon 19378 | -2/Research | Found Unknown Special Melee Weapon 19378 | -2/Research | Identified Chaos Jack 19384 | -2/Research | Found Prototype Device 19384 | -2/Research | Identified Exp. EM Shield 19391 | -2/Research | Found Prototype Device 19391 | -2/Research | Identified Exp. Shock Absorption System 19418 | -2/Research | X0-1V1 enhanced Transport squad support 19422 | -2/Research | Spotted Striker 19424 | -2/Research | System corruption reached 10% 19440 | -2/Research | Spotted KF-IQ3(K) 19449 | -2/Research | Identified exit to Access 19449 | -2/Research | X0-1V1 revealed exit location to -1/Access 19463 | -2/Research | X0-1V1 announced a LAN party 19560 | -2/Research | Entered Access 19560 | -1/Access | Evolved 2 slots: Propulsion x1, Utility x1 19625 | -1/Access | X0-1V1 destroyed Energy Cycler 19625 | -1/Access | Energy Cycler disabled 19641 | -1/Access | X0-1V1 sent allied Lightning (x2) 19745 | -1/Access | Discovered new exit (range 9) 19774 | -1/Access | X0-1V1 vaporized surrounding terrain (radius 16) 19810 | -1/Access | Search patrols dispatched 19857 | -1/Access | X0-1V1 activates XOMVISION 19984 | -1/Access | Discovered new exit (range 7) 19986 | *** | Escaped! Last Messages --------------- Access Zone 7T. 19940_ Sneak attack on W-44 Eye. Form resolidifies at new position. 19941_ >> DECODED: Unknown Energy Gun location. 19961_ >> DECODED: Lrn. Terrain Scanner location. 19961_ X0-1V1: "Don't spend it all in one place." (+21 energy generation) 19971_ Acquired Unknown Energy Gun. 19971_ Identified Tesla Rifle. 19973_ Dropped Tesla Rifle. 19973_ X0-1V1 adds a dash of confusion to 0b10's systems. (extermination recalled) 19974_ Sensor data returns to normal. 19982_ >> DECODED: Adv. Heavy Siege Treads location. 19984_ The Access Shell folds into the floor. 19984_ EXIT=FOUND [Achievement: 30k Club] [Achievement: 40k Club] [Achievement: 50k Club] [Achievement: Epsilon Run] [Achievement: Chaotic Teddy Bear] Map ----- +----------------------------------------------------+ | ????????# +???????????????????????????????????? | | ?????????# #???????????????????????????????????? | | ?????????# #???????????????????????????????????? | | ??????????# #???????????????????????????????????? | | ??????????# #???????????????????????????????????? | | ??????????# #???????????????????????????????????? | | ??????????# #???????????????????????????????????? | | ?????????## #???######??????????????????????????? | | ##########" #?? #??????????????????????????? | | # = # #?? #??????????????????????????? | | # # #?" #??????????????????????????? | | # [ " # #?"" ] #??????????????????????????? | | # """ # # """ #??????????????????????????? | | " """ # # " #??????????????????????????? | | # " + + #??????????????????????????? | | # # # #??????????????????????????? | | # # # ] #??????????????????????????? | | ########### #?########??????????????????????????? | | ??????????# #?????###???????????????????????????? | | ??????????# ####### ##########??????????????????? | | ??????????# """T""" "??????????????????? | | ??????????# """ """ "??????????????????? | | ??????????# "??????????????????? | | ??????????# "??????????????????? | | ??????????# "" "??????????????????? | | ??????????# @" "??????????????????? | | ??????????# k "??????????????????? | | ??????????# "??????????????????? | | ??????????# "??????????????????? | | ??????????# "??????????????????? | | ??????????# ####### ##########??????????????????? | | ??????????# #?????###???????????????????????????? | | =?????????# #???????????????????????????????????? | | ??????????# #???????????????????????????????????? | | ??????????# ????????????????????????????????????? | | ??????????# ????????????????????????????????????? | | ??????????# ????????????????????????????????????? | | ??????????# ????????????????????????????????????? | | ??????????# ????????????????????????????????????? | | ?????????? ????????????????????????????????????? | | ?????????? ????????????????????????????????????? | | ?????????? ????????????????????????????????????? | | ?????????? ????????????????????????????????????? | | ?????????? ????????????????????????????????????? | | ?????????????????????????????????????????????????? | | ?????????????????????????????????????????????????? | | ?????????????????????????????????????????????????? | | ?????????????????????????????????????????????????? | | ?????????????????????????????????????????????????? | | ?????????????????????????????????????????????????? | +----------------------------------------------------+ Best States ------------- Heat Dissipation 139 Coolant Potential 120 Energy Generation 77 Energy Capacity 2040 Matter Stores 1100 Matter Capacity 1100 Sight Range 27 Terrain Scan Density 1010 Jamming Range 16 Cloak Strength 4 Armor Coverage 1200 Resistance: KI 40 Resistance: EM 50 Utility Shielding 90 Point Defense Rating 160 Evasion (%) 66 Targeting Accuracy 8 Melee Accuracy 6 Target Analysis 8 Core Analysis 9 Recoil Reduction 6 Energy Filtering 50 Offensive Hacking 12 Item Schematics ----------------- Assault Drone Bay | -5/Zhirov | Free Exp. Heat Sink | -5/Zhirov | Free Exp. Optical Array | -5/Zhirov | Free Imp. Arc Thrower | -5/Zhirov | Free Robot Schematics ------------------ None Fabricated ------------ Adv. Cloaking Device | x2 | -2/Research | Preloaded Repaired ---------- Nothing Studied --------- Wheel | -9/Materials | Hacked Imp. Treads | -9/Materials | Hacked Hvy. Assault Rifle | -9/Materials | Hacked Assault Rifle | -9/Materials | Hacked Adv. Treads | -8/Materials | Hacked Arm. Treads | -7/Factory | Hacked Adv. Assault Cannon | -7/Factory | Hacked Katana | -7/Factory | Hacked Spear | -7/Factory | Hacked Mic. Antimatter Reactor | -3/Research | Hacked Alien Tech Used ----------------- Integrated Reactor Achievements -------------- 30k Club 40k Club 50k Club All-out Warlord Chaos Is Inevitable Chaotic Teddy Bear Charge!!! Decoder Ring Epsilon Run Executioner Generalissimo Hard Hitter Hot Stuff Just Shoot The Terminal Knowing Is Half The Battle Look Less Dangerous Next Time Main Advantage Physics Hates This One Trick Sniper Suspicious Suspicious By Nature This Is My Hole Turtlemind Well-fed Force Field Challenges ------------ None Game ------ Seed DrainedLinearWings Manual? 0 Play Time 04:41:02 Cumulative 77.5 hours Start 2026.06.23 @ 13:05:25 End 2026.06.26 @ 15:23:31 Sessions 11 Manual Loads 0 Difficulty Rogue Special Mode None Game No. 80 Rogue 80 Adventurer 0 Explorer 0 Win Type 0 Total 1 Types 1/0/0/0/0/0/0/0/0/0 Lore% 58 Gallery% 44 Achievement% 38 Wizard Run 0 Options --------- Layout 1 ASCII 0 Keyboard 0 Movement Mouse Keybinds 0 Fullscreen 1 Font 32/SmallcapsGlow Map View 77x35 Zoom Use 0% Tactical HUD 1 Map Filters NONE Filters NONE Steam 1 RUN: b193b023-ea0b-427e-839d-bc48faa0ca08